[Event "54th Capablanca Memorial 2019"]
[Site "Havana"]
[Date "2019.05.03"]
[Round "1.1"]
[White "Albornoz Cabrera, Carlos Daniel"]
[Black "Sevian, Samuel"]
[Result "0-1"]
[ECO "D38"]
[WhiteElo "2566"]
[BlackElo "2666"]
[Annotator "RC"]
[PlyCount "89"]
[EventDate "2019.05.03"]
[EventType "tourn"]
[EventCountry "CUB"]
[SourceTitle "playchess.com"]
[Source "ChessBase"]
[SourceQuality "1"]
[TimeControl "40/5400+30:1800+30"]

1. Nf3 {[%emt 0:00:00]} d5 {[%emt 0:00:00]} 2. d4 {[%emt 0:00:30]} Nf6 {[%emt 0:00:30]} 3. c4 {[%emt 0:00:30]} e6 {[%emt 0:00:30]} 4. Nc3 {[%emt 0:00:30]} Bb4 {[%emt 0:00:30]} 5. Bg5 {[%emt 0:00:30]} h6 {[%emt 0:00:30]} 6. Bxf6 {[%emt 0:00:30]} Qxf6 {[%emt 0:00:30]} 7. Qa4+ {[%emt 0:00:30]} Nc6 {[%emt 0:00:30]} 8. e3 {[%emt 0:00:30]} O-O {[%emt 0:00:30]} 9. Bd3 {[%emt 0:00:30]} dxc4 {[%emt 0:00:30]} 10. Bxc4 {[%emt 0:00:30]} Bd7 {[%emt 0:00:30]} 11. O-O {[%emt 0:00:30]} Bxc3 {[%emt 0:00:30]} 12. bxc3 {[%emt 0:00:30]} Qe7 {[%emt 0:00:30]} 13. Qd1 {[%emt 0:00:30]} Rfd8 {[%emt 0:00:30]} 14. e4 {[%emt 0:00:30]} e5 {[%emt 0:00:30]} 15. d5 {[%emt 0:00:30]} Na5 {[%emt 0:00:30]} 16. Be2 {[%emt 0:00:30]} b6 {[%emt 0:00:30]} 17. c4 {[%emt 0:00:30]} Nb7 {[%emt 0:00:30]} 18. Qd3 {[%emt 0:00:30]} c6 {[%emt 0:00:30]} 19. Nd2 {[%emt 0:00:30]} Rac8 {[%emt 0:00:30]} 20. Nb3 {[%emt 0:00:30]} Nd6 {[%emt 0:00:30]} 21. Rac1 {[%emt 0:00:30]} cxd5 {[%emt 0:00:30]} 22. cxd5 {[%emt 0:00:30]} Qg5 {[%emt 0:00:30]} 23. g3 {[%emt 0:00:30]} f5 {[%emt 0:00:30]} 24. exf5 {[%emt 0:00:30]} Bxf5 {[%emt 0:00:30]} 25. Qd2 {[%emt 0:00:30]} Qf6 {[%emt 0:00:30]} 26. Rxc8 {[%emt 0:00:30]} Bxc8 {[%emt 0:00:30]} 27. Re1 {[%emt 0:00:30]} Bb7 {[%emt 0:00:30]} 28. Bf1 {[%emt 0:00:30]} e4 {[%emt 0:00:30]} 29. Rd1 {[%emt 0:00:30]} Nf7 {[%emt 0:00:30]} 30. Qd4 {[%emt 0:00:30]} Bxd5 {[%emt 0:00:30]} 31. Qe3 {[%emt 0:00:30]} Ne5 {[%emt 0:00:30]} 32. Bg2 {[%emt 0:00:30]} Nf3+ {[%emt 0:00:30]} 33. Kh1 {[%emt 0:00:30]} Bb7 {[%emt 0:00:30]} 34. Rxd8+ {[%emt 0:00:30]} Qxd8 {[%emt 0:00:30]} 35. Bxf3 {[%emt 0:00:30]} exf3 {[%emt 0:00:30]} 36. Nd4 {[%emt 0:00:30]} Qd5 {[%emt 0:00:30]} 37. h3 {[%emt 0:00:30]} Qe4 {[%emt 0:00:30]} 38. Qb3+ {[%emt 0:00:30]} Bd5 {[%emt 0:00:30]} 39. Qb2 {[%emt 0:00:30]} Qe2 {[%emt 0:00:30]} 40. Qc1 {[%emt 0:00:30]} Qxf2 {[%emt 0:00:30]} 41. Qc8+ {[%emt 0:30:30]} Kh7 {[%emt 0:30:30]} 42. Qf5+ {[%emt 0:00:30]} Kh8 {[%emt 0:00:30]} 43. Qf8+ {[%emt 0:00:30]} Bg8 {[%emt 0:00:30]} 44. Nxf3 {[%emt 0:00:30]} Qxg3 {[%emt 0:00:30]} 45. h4 {[%emt 0:00:30]} 0-1

[Event "54th Capablanca Memorial 2019"]
[Site "Havana"]
[Date "2019.05.05"]
[Round "3.1"]
[White "Gonzalez Vidal, Yuri"]
[Black "Anton Guijarro, David"]
[Result "1/2-1/2"]
[ECO "C47"]
[WhiteElo "2567"]
[BlackElo "2667"]
[Annotator "RC"]
[PlyCount "58"]
[EventDate "2019.05.03"]
[EventType "tourn"]
[EventCountry "CUB"]
[SourceTitle "playchess.com"]
[Source "ChessBase"]
[SourceQuality "1"]
[TimeControl "40/5400+30:1800+30"]

1. e4 e5 2. Nf3 Nc6 3. Nc3 Nf6 4. d4 exd4 5. Nxd4 Bb4 6. Nxc6 bxc6 7. Bd3 d5 8. exd5 O-O 9. O-O Bg4 10. Ne2 cxd5 11. h3 Bh5 12. c4 d4 13. Qc2 Bxe2 14. Qxe2 c5 15. Bg5 Re8 16. Qf3 h6 17. Bh4 Qd6 18. a3 Ba5 19. Bxf6 Qxf6 20. Qxf6 gxf6 21. Rfb1 Rab8 22. b4 cxb4 23. axb4 Rxb4 24. Rxa5 Rxb1+ 25. Bxb1 Re1+ 26. Kh2 Rxb1 27. Rxa7 Rc1 28. Rc7 d3 29. Rd7 Rxc4 1/2-1/2